Cogmind - Beta 14 *** ADVENTURER MODE // 2024.09.07 @ 17:10:09 Player: Ms. V3-11A Result: Destroyed by G-50 Soldier with Heavy Laser Performance ------------- Evolutions (4) 2000 Regions Visited (12) 2400 Robots Destroyed (121) 605 Value Destroyed (4763) 4763 Prototype IDs (21) 420 Alien Tech Used (0) 0 Bonus (-1058) -1058 TOTAL SCORE: 9130 Bonus ------- Follower Combat Kills 342 Friendly Fire -1400 Cogmind --------- Core Integrity 0/850 Matter 132/300 Energy 68/100 System Corruption 16% Temperature Warm (113) Movement Core (750) Ox14 Location -6/Extension Parts ------- > --- POWER (2) -------- (None) > --- PROPULSION (3) --- (None) > --- UTILITY (7) ------ Scrap Engine High-capacity Storage Unit Improved Trap Scanner (fused) > --- WEAPON (3) ------- (None) > --- INVENTORY (20) --- Coolant Injector High-capacity Storage Unit Energy Well (350) Energy Well (350) 0b10 Decoder Chip [Generic] 0b10 Decoder Chip [Looter] Advanced Targeting Computer Advanced Targeting Computer EM Disruption Field Improved Hardlight Generator Drone Bay (2/2) Heart of Steel Plasma Cutter Makeshift Hammer Peak State ------------ > --- POWER ------------ Backup Power VII Fission-Deuterium Core > --- PROPULSION ------- Treaded Compact Exoskeleton > --- UTILITY ---------- Armored Scrap Engine Improved Cooling System High-capacity Storage Unit Makeshift Medium Armor Plating Force Field Hacking Suite > --- WEAPON ----------- Backup Laser VII Backup Laser VII > --- INVENTORY -------- Improved Cooling System Coolant Injector High-capacity Storage Unit 0b10 Decoder Chip [Generic] 0b10 Decoder Chip [Looter] Advanced Targeting Computer Hardened Medium Armor Plating Hardened Medium Armor Plating Makeshift Light Armor Plating Improved Hardlight Generator System Shield Drone Bay Heart of Steel Heavy Rocket Launcher Plasma Cutter Makeshift Hammer [Rating: 75] Favorites ----------- Power Constructs Engine Subdweller Power Source Power Core Constructs Propulsion Constructs Treads Constructs Leg Aluminum Leg Wheel Compact Wheel Utility High-capacity Storage Unit Device Armored Scrap Engine Storage High-capacity Storage Unit Processor Improved Targeting Computer Hackware Hacking Suite Protection Improved Light Armor Plating Weapon Constructs Energy Gun Constructs Energy Cannon Plasma Cannon Ballistic Gun Autogun Ballistic Cannon Constructs Launcher Heavy Rocket Launcher Special Weapon Plasma Cutter Impact Weapon Makeshift Hammer Build | -11 -10 -10 -9 -7 -7 -7 -7 -7 -7 -6 -6 -6 ------- Run | Yrd Mat Sub Rec Fac Was Fac Low Low Zio Pro Fac Ext Slots Evolved 8 | . . . . 6 . . . . . . 2 . Power 1 | . . . . 1 . . . . . . . . Propulsion 1 | . . . . 1 . . . . . . . . Utility 5 | . . . . 3 . . . . . . 2 . Weapon 1 | . . . . 1 . . . . . . . . Parts Attached 71 | . 6 17 1 5 1 3 3 2 1 2 23 7 Power 5 | . . 2 . . . . . 1 . . 1 1 Engine 5 | . . 2 . . . . . 1 . . 1 1 Core . | . . . . . . . . . . . . . Reactor . | . . . . . . . . . . . . . Propulsion 9 | . 1 6 . . . . . . . . 2 . Treads 2 | . . 2 . . . . . . . . . . Leg 2 | . 1 1 . . . . . . . . . . Wheel 5 | . . 3 . . . . . . . . 2 . Hover . | . . . . . . . . . . . . . Flight . | . . . . . . . . . . . . . Utility 30 | . 3 . 1 5 1 1 3 . . 2 13 1 Device 15 | . . . 1 3 1 . 2 . . 2 6 . Storage 4 | . 2 . . 1 . . . . . . 1 . Processor 2 | . 1 . . . . 1 . . . . . . Hackware 2 | . . . . . . . . . . . 2 . Protection 7 | . . . . 1 . . 1 . . . 4 1 Artifact . | . . . . . . . . . . . . . Weapon 27 | . 2 9 . . . 2 . 1 1 . 7 5 Energy Gun 5 | . 1 1 . . . 2 . 1 . . . . Energy Cannon 4 | . . . . . . . . . . . 4 . Ballistic Gun 8 | . 1 7 . . . . . . . . . . Ballistic Cannon . | . . . . . . . . . . . . . Launcher 6 | . . 1 . . . . . . . . 2 3 Special Weapon 2 | . . . . . . . . . . . . 2 Impact Weapon 2 | . . . . . . . . . 1 . 1 . Slashing Weapon . | . . . . . . . . . . . . . Piercing Weapon . | . . . . . . . . . . . . . Special Melee Weapon . | . . . . . . . . . . . . . Unidentified Prototypes 3 | . . . 1 . . . . . . . 2 . Parts Lost 40 | . . 6 1 . . . 2 . 6 . 13 12 Power 7 | . . 1 . . . . 1 . 1 . 2 2 Propulsion 9 | . . 2 . . . . . . 2 . 3 2 Utility 12 | . . . . . . . 1 . 1 . 5 5 Weapon 12 | . . 3 1 . . . . . 2 . 3 3 Highest Loss Streak 6 | . . 1 1 . . . 1 . 6 . 5 5 To Critical Strikes 1 | . . . . . . . . . 1 . . . Average Slot Usage (%) 68 | . 100 99 91 59 61 57 68 68 63 49 54 47 Engine 6 | . 14 13 13 5 1 . . 6 5 . 6 . Core 1 | . . . . 1 . . 3 7 7 7 2 1 Reactor 1 | . . . . . 5 7 3 . . . . . Treads 7 | . . 15 24 4 4 3 7 7 7 7 . 4 Leg 4 | . 28 8 . 2 2 3 . . . . 5 . Device 10 | . . . 4 18 15 9 13 15 15 19 10 13 Storage 8 | . 14 14 9 6 7 7 7 7 7 7 6 6 Processor 4 | . 14 14 9 . . 4 1 . . . . . Hackware 1 | . . . . . . . . . . . 7 . Protection 3 | . . . . 2 7 7 6 7 5 . 2 11 Energy Gun 4 | . 14 3 . 2 2 3 21 12 11 . 3 3 Energy Cannon 1 | . . . . 7 7 1 . . . . 3 . Ballistic Gun 7 | . 14 24 26 . 4 2 . . . . . 2 Ballistic Cannon 1 | . . . . 4 . 3 . 2 . 5 . . Peak Build Rating 75 | 6 11 18 36 56 65 66 63 68 64 52 75 63 Average Rating 42 | 6 10 15 22 45 61 58 60 63 59 48 55 49 On Entrance 41 | 6 6 11 18 33 56 65 59 63 63 45 52 57 Naked Turns . | . . . . . . . . . . . . . Heaviest Build 86 | 13 51 52 51 63 69 69 69 74 70 63 86 69 Greatest Support 83 | 20 20 40 47 61 61 83 64 64 64 21 21 16 Greatest Overweight (x) 25 | . 2 2 1 1 1 1 1 1 2 2 25 22 Average Overweight (x) 1 | . 1 1 . . . . . . 1 2 4 4 Largest Inventory Capacity 20 | 8 20 20 20 20 20 20 20 20 20 20 20 20 Average Capacity 19 | 8 17 20 15 19 20 20 20 20 20 20 20 20 Most Carried 20 | 5 10 20 20 14 18 19 20 20 20 20 20 19 Average Carried 16 | 3 8 18 14 5 16 14 18 18 19 19 18 17 Final Capacity 20 | 8 20 20 5 20 20 20 20 20 20 20 20 20 Final Carried 20 | 2 10 19 5 14 18 18 20 18 19 20 19 16 Scrap Engine Consumption 204 | . . . 30 37 23 37 6 2 . 9 46 14 Constructs Created 16 | . . . 4 . . . 1 1 . 1 7 2 Constructs Modified 69 | . . . 7 15 9 16 4 . . 2 13 3 Class Distribution -------------------- 36% | Construct 35% | Mutant 22% | Hacker-Mutant 6% | Commander-Mutant Dominant Class ---------------- Mutant | -10/Materials Mutant | -10/Subcaves Commander-Mutant | -9/Recycling Construct | -7/Factory Construct | -7/Waste Construct | -7/Factory Construct | -7/Lower Caves Construct | -7/Lower Caves Construct | -7/Zion Mutant | -6/Proximity Caves Hacker-Mutant | -6/Factory Mutant | -6/Extension Resources | -11 -10 -10 -9 -7 -7 -7 -7 -7 -7 -6 -6 -6 ----------- Run | Yrd Mat Sub Rec Fac Was Fac Low Low Zio Pro Fac Ext Matter Collected 2982 | 200 89 724 275 176 30 78 117 33 . 78 878 304 Remotely . | . . . . . . . . . . . . . Salvage Created 5599 | . 233 741 297 572 208 254 453 93 18 59 1833 838 Parts 258 | . 7 38 15 45 6 13 13 5 . 3 70 43 Haulers Intercepted . | . . . . . . . . . . . . . Recyclers Shooed 8 | . . . . . . . . . . . 6 2 Parts Field Recycled . | . . . . . . . . . . . . . Retrieved Matter . | . . . . . . . . . . . . . Parts Self-Destructed 17 | . . 5 . . . . 4 5 . 3 . . Prevented . | . . . . . . . . . . . . . Kills | -11 -10 -10 -9 -7 -7 -7 -7 -7 -7 -6 -6 -6 ------- Run | Yrd Mat Sub Rec Fac Was Fac Low Low Zio Pro Fac Ext Combat Hostiles Destroyed 99 | . 4 18 4 7 . 6 11 4 . 1 33 11 Melee 2 | . . . . . . . . . . . 2 . Guns 47 | . 4 18 4 . . 5 8 3 . . 2 3 Cannons 23 | . . . . 7 . 1 . 1 . 1 13 . AOE 16 | . . . . . . . . . . . 11 5 Classes Destroyed 17 | . 3 2 3 4 . . 1 . 1 1 1 1 Worker 2 | . . . . . . . . . . . 1 1 Builder 4 | . . . 1 1 . . . . . . 1 1 Recycler 7 | . 1 . . 1 . . . . . . 5 . Operator 2 | . . . . 2 . . . . . . . . Turret 2 | . . 2 . . . . . . . . . . Watcher 3 | . . . . . . . . . . . 1 2 Swarmer 18 | . . 4 . . . . 3 4 . . 7 . Grunt 26 | . 2 . . . . 1 3 . . . 13 7 Brawler 3 | . . . . . . . 1 . . . 1 1 Protector 1 | . . . 1 . . . . . . . . . Sentry 9 | . . . . 3 . 2 . . . . 2 2 Hunter 2 | . . . . 1 . 1 . . . . . . Programmer 16 | . . . . 3 . 2 . . . 1 10 . Behemoth 1 | . . . . . . . . . . . . 1 Subdweller 16 | . 2 14 . . . . . . . . . . Scrapper 3 | . . . 3 . . . . . . . . . Zionite 1 | . . . . . . . . . 1 . . . Decomposer 2 | . . . . . . . . . . 2 . . Packrat 1 | . . . . . . . 1 . . . . . Wasp 3 | . . . . . . . 3 . . . . . Thug 1 | . . . . . . . 1 . . . . . Best Kill Streak 12 | . 2 5 3 3 . 1 4 4 1 1 12 9 Combat Bots Only 9 | . 2 4 3 2 . 1 4 4 . 1 9 7 Max Kills in Single Turn 5 | . 1 1 1 2 . 1 1 2 1 1 2 5 Gunslinging 1 | . . . . . . . . 1 . . . . Exploded 4 | . . . . . . . . . . . 2 4 Melee 1 | . . . . . . . . . . . 1 . Uniques/NPCs Destroyed 1 | . . . . . . . . . . . . 1 A7 (-6/Extension) Combat | -11 -10 -10 -9 -7 -7 -7 -7 -7 -7 -6 -6 -6 -------- Run | Yrd Mat Sub Rec Fac Was Fac Low Low Zio Pro Fac Ext Hostile Shots Fired 1175 | . 19 122 20 81 . 119 32 34 130 14 331 273 Missed 412 | . 8 39 12 33 . 39 6 13 48 8 103 103 Damage Taken 8796 | . 185 1063 130 363 . 606 412 239 1182 69 2658 1889 Core 1509 | . 24 123 . 76 . 75 129 41 155 35 436 415 Absorbed by Shields 117 | . . . 34 . . . . . . . 46 37 Redirected to Shielding 101 | . . . . . . . . . . . . 101 Ignored by Resistances 2586 | . 51 309 45 117 . 193 93 71 327 20 781 579 Regen/Repaired (Parts) 1120 | . . . 215 147 4 204 . . . 117 171 262 Core Remaining (%) 56 | 100 . . 41 . . . . . . 27 . . Volleys Fired 467 | . 24 95 22 21 7 40 24 19 10 12 136 57 Largest 3 | . 2 2 2 2 2 2 3 2 2 1 2 1 Hottest 170 | . 88 88 51 156 126 128 170 126 121 51 141 65 Shots Fired 700 | . 47 175 44 42 14 42 72 21 19 12 156 56 Gun 502 | . 47 174 44 14 7 36 71 6 19 . 44 40 Cannon 168 | . . . . 28 7 6 1 15 . 12 99 . Launcher 30 | . . 1 . . . . . . . . 13 16 Special . | . . . . . . . . . . . . . Kinetic 314 | . 24 154 44 5 2 42 1 17 9 8 6 2 Thermal 336 | . 23 20 . 21 12 . 71 4 10 . 137 38 Explosive 18 | . . 1 . . . . . . . . 13 4 Electromagnetic 32 | . . . . 16 . . . . . 4 . 12 Robot Hit Streak 39 | . 22 39 13 20 29 25 31 10 19 4 24 14 Robot Miss Streak 5 | . 1 2 2 1 1 2 2 2 1 3 5 2 Penetration Max . | . . . . . . . . . . . . . Secondary Targets 9 | . 1 3 . . . . 3 2 . . . . Max Gunslinging Chain 1 | . 1 1 . . . . 1 1 . . . . Shots Hit Robots 536 | . 41 128 37 30 12 40 41 11 17 7 127 45 Core Hits 274 | . 12 37 10 16 6 20 24 6 2 1 100 40 Critical Kills 3 | . . . . 1 . . . . . . 2 . Critical Parts Destroyed 2 | . . . 1 . . . . . . . 1 . Critical Strikes 9 | . 1 . 1 1 . . 2 1 . . 3 . Burn 4 | . 1 . . . . . 2 1 . . . . Meltdown 2 | . . . . . . . . . . . 2 . Destroy 2 | . . . 1 1 . . . . . . . . Smash 1 | . . . . . . . . . . . 1 . Melee Attacks 12 | . . . . . . . . . 1 1 10 . Impact 12 | . . . . . . . . . 1 1 10 . Slashing . | . . . . . . . . . . . . . Piercing . | . . . . . . . . . . . . . Sneak Attacks . | . . . . . . . . . . . . . Combat Hostiles . | . . . . . . . . . . . . . Follow-up Attacks . | . . . . . . . . . . . . . Damage Inflicted 15216 | . 662 1897 613 1117 384 943 694 144 341 224 4984 3213 Guns 6508 | . 655 1894 613 75 139 804 692 70 288 . 614 664 Cannons 3755 | . . . . 1042 245 138 . 74 . 224 2032 . Explosions 4638 | . . . . . . . . . . . 2091 2547 Melee 300 | . . . . . . . . . 53 . 247 . Ramming 15 | . 7 3 . . . 1 2 . . . . 2 Kinetic 4218 | . 347 1651 613 33 44 942 . 74 167 180 148 19 Thermal 6304 | . 308 243 . 924 340 . 692 70 121 . 2498 1108 Explosive 3026 | . . . . . . . . . . . 2091 935 Electromagnetic 1353 | . . . . 160 . . . . . 44 . 1149 Impact 300 | . . . . . . . . . 53 . 247 . Slashing . | . . . . . . . . . . . . . Piercing . | . . . . . . . . . . . . . Highest Corruption 16 | . . . . . . 2 2 2 2 . 14 16 Average Corruption 8 | . . . . . . 1 2 2 2 . 11 14 Corruption Purged . | . . . . . . . . . . . . . Corruption Blocked . | . . . . . . . . . . . . . Effects 224 | . . . . . . 7 15 6 2 . 158 36 Message Errors 53 | . . . . . . . 4 3 . . 38 8 Matter Fused 57 | . . . . . . 4 4 . . . 39 10 Heat Flow Errors 26 | . . . . . . 1 1 . . . 21 3 Energy Discharges 31 | . . . . . . 1 2 1 . . 23 4 Parts Rejected 4 | . . . . . . . . . . . 3 1 Parts Fused 4 | . . . . . . . 1 . . . 3 . Data Loss (minor) 27 | . . . . . . 1 2 1 2 . 15 6 Data Loss (major) 14 | . . . . . . . 1 . . . 12 1 Alerts 4 | . . . . . . . . 1 . . 2 1 Misdirections 1 | . . . . . . . . . . . . 1 Weapon Failures 3 | . . . . . . . . . . . 2 1 Overload Shots . | . . . . . . . . . . . . . Overflow Damage 377 | . . . . 89 5 . . . 13 54 144 72 Projectiles 150 | . . . . 89 5 . . . . 54 2 . Explosions 106 | . . . . . . . . . . . 34 72 Melee 121 | . . . . . . . . . 13 . 108 . Knockbacks 15 | . . . . . . 3 . 2 1 1 8 . Impact 4 | . . . . . . . . . 1 . 3 . Kinetic 11 | . . . . . . 3 . 2 . 1 5 . Secondary . | . . . . . . . . . . . . . Self-Inflicted Damage 130 | . . 13 . . . . . . . . . 117 Shots 10 | . . 1 . . . . . . . . . 9 Rammed 3 | . . 1 . . . 1 . . . . . 1 Targets Rammed 6 | . 1 1 . . . 1 1 . . . 1 1 Kicked 2 | . 1 . . . . . . . . . 1 . Crushed 1 | . . . . . . . 1 . . . . . Highest Temperature 513 | . 201 22 36 209 20 355 513 4 . . 377 227 Average Temperature 96 | . 88 9 17 75 15 111 122 2 . . 99 107 Received Heat Transfer 2200 | . 75 285 92 72 . 183 108 . . . 749 636 Effects 14 | . . . . . . 1 6 . . . 7 . Shutdowns 3 | . . . . . . . 1 . . . 2 . Energy Bleed 1 | . . . . . . . . . . . 1 . Interference 4 | . . . . . . . . . . . 4 . Matter Decay 2 | . . . . . . 1 1 . . . . . Damage (major) 3 | . . . . . . . 3 . . . . . Damage (core) 1 | . . . . . . . 1 . . . . . Siege Activations . | . . . . . . . . . . . . . Robots Corrupted 4 | . . . . . . . . . 1 . . 3 Combat Hostiles 3 | . . . . . . . . . . . . 3 Parts Fried 2 | . . . . . . . . . 1 . . 1 Impact Corruptions 6 | . . . . . . . . . 2 . 4 . Robots Melted 9 | . . . . . . . 3 . . . 6 . Combat Hostiles 8 | . . . . . . . 3 . . . 5 . Parts Melted 36 | . 4 3 1 . . . 5 1 . . 20 2 Heat Transferred 12274 | . 814 458 . 666 573 . 2294 222 296 . 5495 1456 Parts Sabotaged . | . . . . . . . . . . . . . Parts Stolen . | . . . . . . . . . . . . . Parts Stripped . | . . . . . . . . . . . . . Power Chain Reactions 7 | . . . . . . . . . . . . 7 Alert | -11 -10 -10 -9 -7 -7 -7 -7 -7 -7 -6 -6 -6 ------- Run | Yrd Mat Sub Rec Fac Was Fac Low Low Zio Pro Fac Ext Peak Influence 355 | . 75 . 72 125 1 280 . . . . 262 355 Initial 100 | . . . 67 100 . . . . . . . 14 Average 40 | . 16 . 17 56 . 43 . . . . 50 76 Maximum Alert Level 1 | . . . . . . 1 . . . . 1 1 Low Security (%) 98 | 100 100 . 100 100 100 93 . . . . 98 97 Level 1 1 | . . . . . . 6 . . . . 1 2 Level 2 . | . . . . . . . . . . . . . Level 3 . | . . . . . . . . . . . . . Level 4 . | . . . . . . . . . . . . . Level 5 . | . . . . . . . . . . . . . High Security . | . . . . . . . . . . . . . Max Security . | . . . . . . . . . . . . . Squads Dispatched 22 | . . . . 5 . 3 . . . . 10 4 Investigation 2 | . . . . . . 1 . . . . . 1 Extermination 11 | . . . . 3 . 2 . . . . 6 . Reinforcement 8 | . . . . 2 . . . . . . 3 3 Assault . | . . . . . . . . . . . . . Garrison 1 | . . . . . . . . . . . 1 . Intercept . | . . . . . . . . . . . . . Searches Triggered . | . . . . . . . . . . . . . Construction Impeded 3 | . . . . . . . . . . . 1 2 Haulers Reinforced 1 | . . . . . . . . . . . 1 . Active Scanning Responses . | . . . . . . . . . . . . . Cargo Convoy Interrupts . | . . . . . . . . . . . . . Stealth | -11 -10 -10 -9 -7 -7 -7 -7 -7 -7 -6 -6 -6 --------- Run | Yrd Mat Sub Rec Fac Was Fac Low Low Zio Pro Fac Ext Distress Signals 7 | . . . . . . . . . . . 4 3 Communications Jammed . | . . . . . . . . . . . . . Distress Signals . | . . . . . . . . . . . . . Times Spotted 163 | . 8 21 8 10 1 10 11 4 3 1 50 36 Peak Tracking Total 12 | . 3 6 2 2 1 2 4 4 3 1 10 12 Tactical Retreats 12 | . . 2 . 1 . 1 . . 1 . 4 3 Traps | -11 -10 -10 -9 -7 -7 -7 -7 -7 -7 -6 -6 -6 ------- Run | Yrd Mat Sub Rec Fac Was Fac Low Low Zio Pro Fac Ext Traps Triggered 3 | . 1 . . 1 . . . . . . 1 . Indirectly . | . . . . . . . . . . . . . Trap Hack Attempts . | . . . . . . . . . . . . . Triggered . | . . . . . . . . . . . . . Disarmed . | . . . . . . . . . . . . . Reprogrammed . | . . . . . . . . . . . . . Reused . | . . . . . . . . . . . . . Traps Extracted . | . . . . . . . . . . . . . Installed . | . . . . . . . . . . . . . Triggered . | . . . . . . . . . . . . . Most Traps Carried 2 | . . 2 2 . . . . . . . . . Machines | -11 -10 -10 -9 -7 -7 -7 -7 -7 -7 -6 -6 -6 ---------- Run | Yrd Mat Sub Rec Fac Was Fac Low Low Zio Pro Fac Ext Machines Disabled 10 | . . 1 . 1 . . . . . 1 1 6 Max in Single Turn 2 | . . 1 . 1 . . . . . 1 1 2 Garrison Access 3 | . . . . . . 2 . . . . 1 . Energy Cycler 1 | . . . . . . . . . . . . 1 Machines Repaired . | . . . . . . . . . . . . . Machines Dismantled 2 | . . . . . . . . . . . . 2 Machines Sabotaged . | . . . . . . . . . . . . . Overloaded Fab Kills . | . . . . . . . . . . . . . Hacking | -11 -10 -10 -9 -7 -7 -7 -7 -7 -7 -6 -6 -6 --------- Run | Yrd Mat Sub Rec Fac Was Fac Low Low Zio Pro Fac Ext Machines Accessed 50 | . 3 1 10 7 . 10 2 . 1 1 7 8 Terminals 28 | . 3 . 6 4 . 4 . . . . 3 8 Fabricators 1 | . . . . . . 1 . . . . . . Repair Stations 1 | . . . . . . . . . . . 1 . Recycling Units 10 | . . . 3 2 . 3 . . . . 2 . Scanalyzers 1 | . . . . 1 . . . . . . . . Garrison Access 3 | . . . . . . 2 . . . . 1 . Total Hacks 113 | . 13 5 18 15 . 21 2 . 8 1 11 19 Successful 69 | . 10 5 14 9 . 8 2 . 8 1 6 6 Failed 44 | . 3 . 4 6 . 13 . . . . 5 13 Catastrophic 4 | . . . . 1 . . . . . . 1 2 Database Lockouts . | . . . . . . . . . . . . . Manual 44 | . 6 . 10 9 . 8 . . . . 6 5 Terminals 67 | . 13 . 10 10 . 9 . . . . 6 19 Fabricators 3 | . . . . . . 3 . . . . . . Repair Stations 1 | . . . . . . . . . . . 1 . Recycling Units 16 | . . . 6 3 . 5 . . . . 2 . Scanalyzers 2 | . . . . 2 . . . . . . . . Garrison Access 6 | . . . . . . 4 . . . . 2 . Terminal Hacks 34 | . 6 5 4 2 . 1 2 . 8 1 . 5 Record 6 | . . 5 . . . . . . . 1 . . Part Schematic 10 | . . . 1 . . . . . 8 . . 1 Prototype ID Bank 5 | . 1 . 1 1 . . . . . . . 2 Open Door 4 | . . . . . . . 2 . . . . 2 Emergency Access Points 1 | . 1 . . . . . . . . . . . Terminal Index 2 | . . . . 1 . 1 . . . . . . Recycling Unit Index 1 | . 1 . . . . . . . . . . . Hauler Manifests 1 | . 1 . . . . . . . . . . . Registered Components 1 | . 1 . . . . . . . . . . . Zone Layout 1 | . 1 . . . . . . . . . . . Release Object 2 | . . . 2 . . . . . . . . . Fabricator Hacks . | . . . . . . . . . . . . . Repair Station Hacks 1 | . . . . . . . . . . . 1 . Refit 1 | . . . . . . . . . . . 1 . Recycling Unit Hacks 10 | . . . 3 2 . 3 . . . . 2 . Retrieve Components 10 | . . . 3 2 . 3 . . . . 2 . Scanalyzer 2 | . . . . 2 . . . . . . . . Insert Component 2 | . . . . 2 . . . . . . . . Garrison Access Hacks 2 | . . . . . . 1 . . . . 1 . Seal Access 2 | . . . . . . 1 . . . . 1 . Unauthorized Hacks 20 | . 4 . 7 3 . 3 . . . . 2 1 Terminals 17 | . 4 . 5 3 . 2 . . . . 2 1 Botnet 8 | . 1 . . 3 . 2 . . . . 1 1 Skim 9 | . 3 . 5 . . . . . . . 1 . Fabricators . | . . . . . . . . . . . . . Repair Stations . | . . . . . . . . . . . . . Recycling Units 2 | . . . 2 . . . . . . . . . Tunnel 2 | . . . 2 . . . . . . . . . Scanalyzers . | . . . . . . . . . . . . . Garrison Access 1 | . . . . . . 1 . . . . . . Jam 1 | . . . . . . 1 . . . . . . Data Cores Recovered 1 | . . . . 1 . . . . . . . . Used 1 | . . . . 1 . . . . . . . . Hacking Detections 34 | . 3 . 6 5 . 8 . . . . 6 6 Full Trace Events 1 | . . . . . . . . . . . . 1 Feedback Events 1 | . . . . . . . . . . . . 1 Corruption 1 | . . . . . . . . . . . . 1 Feedback Blocked . | . . . . . . . . . . . . . Robot Schematics Acquired . | . . . . . . . . . . . . . Robots Built . | . . . . . . . . . . . . . Authchips . | . . . . . . . . . . . . . Time . | . . . . . . . . . . . . . Total Robot Build Rating . | . . . . . . . . . . . . . Part Schematics Acquired 10 | . . . 1 . . . . . 8 . . 1 Parts Built . | . . . . . . . . . . . . . Authchips . | . . . . . . . . . . . . . Time . | . . . . . . . . . . . . . Total Part Build Rating . | . . . . . . . . . . . . . Parts Repaired . | . . . . . . . . . . . . . Time . | . . . . . . . . . . . . . Parts Recycled . | . . . . . . . . . . . . . Recycled Matter . | . . . . . . . . . . . . . Retrieved Matter . | . . . . . . . . . . . . . Retrieved Components 44 | . . . 11 11 . 6 . . . . 16 . Parts Scanalyzed . | . . . . . . . . . . . . . Part Schematics Acquired . | . . . . . . . . . . . . . Parts Damaged . | . . . . . . . . . . . . . Bothacking | -11 -10 -10 -9 -7 -7 -7 -7 -7 -7 -6 -6 -6 ------------ Run | Yrd Mat Sub Rec Fac Was Fac Low Low Zio Pro Fac Ext Used RIF Installer . | . . . . . . . . . . . . . Robots Hacked . | . . . . . . . . . . . . . Non-combat . | . . . . . . . . . . . . . Combat . | . . . . . . . . . . . . . Robot Hacks Applied . | . . . . . . . . . . . . . Relay Couplers Released . | . . . . . . . . . . . . . Fabnet Peak Effective % . | . . . . . . . . . . . . . Robots Rewired 9 | . . . 9 . . . . . . . . . Allies Hacked . | . . . . . . . . . . . . . Hacks Repelled . | . . . . . . . . . . . . . Allies | -11 -10 -10 -9 -7 -7 -7 -7 -7 -7 -6 -6 -6 -------- Run | Yrd Mat Sub Rec Fac Was Fac Low Low Zio Pro Fac Ext Total Allies 15 | . . . 9 . . . . . . . . 6 Largest Group 9 | . . . 9 1 . . . . . . . 5 Highest-Rated Group 277 | . . . 137 9 . . . . . . . 277 Highest-Rated Ally 159 | . . . 27 9 . . . . . . . 159 Total Orders 2 | . . . . . . . . . . 2 . . EXPLORE 1 | . . . . . . . . . . 1 . . RETURN 1 | . . . . . . . . . . 1 . . Ally Attacks 78 | . . . 12 . . . . . . . . 66 Total Damage 2054 | . . . 373 . . . . . . . . 1681 Kills 10 | . . . 5 . . . . . . . . 5 Allies Corrupted . | . . . . . . . . . . . . . Allies Melted . | . . . . . . . . . . . . . Intel | -11 -10 -10 -9 -7 -7 -7 -7 -7 -7 -6 -6 -6 ------- Run | Yrd Mat Sub Rec Fac Was Fac Low Low Zio Pro Fac Ext Robot Analysis Total . | . . . . . . . . . . . . . Derelict Logs Recovered 4 | . . . . . . . 2 1 . 1 . . Drone Launches 2 | . . . . . . . . . . 2 . . Drone Recoveries 2 | . . . . . . . . . . 2 . . Exploration | -11 -10 -10 -9 -7 -7 -7 -7 -7 -7 -6 -6 -6 ------------- Run | Yrd Mat Sub Rec Fac Was Fac Low Low Zio Pro Fac Ext Turns Passed 21554 | 3 816 3163 2660 2043 890 2112 982 692 474 2025 4799 895 Spaces Moved 8039 | 1 332 1246 896 1006 359 979 455 334 219 621 1351 240 Core 51 | . . . . . . . . . . . 35 16 Treads 4721 | . . 604 896 565 198 604 455 334 219 621 15 210 Legs 2514 | 1 332 351 . 441 161 375 . . . . 839 14 Wheels 753 | . . 291 . . . . . . . . 462 . Hover . | . . . . . . . . . . . . . Flight . | . . . . . . . . . . . . . Fastest Speed 99 | 120 120 130 115 99 99 121 121 121 192 263 145 228 Average Speed 225 | 120 218 229 216 178 241 203 153 184 202 263 286 285 Slowest Speed 1300 | 120 260 260 260 237 284 284 192 192 263 263 1300 1150 Overloaded Moves . | . . . . . . . . . . . . . Propulsion Burnouts . | . . . . . . . . . . . . . Robots Hopped . | . . . . . . . . . . . . . Cave-ins Triggered . | . . . . . . . . . . . . . Exploration Rate (%) 49 | 2 43 75 96 20 95 19 53 62 14 98 32 40 Regions Visited 12 Branch Regions 7 Pre-discovered Areas 5 | . . . 5 . . . . . . . . . Known Exits Taken 3 | . . . . . . 1 . . . 1 1 . Unknown Exits Taken 7 | 1 1 1 1 . . . 1 1 1 . . . Scrap Searched 22 | . . 16 . . . . 1 . . 5 . . Spaces Dug . | . . . . . . . . . . . . . Terrain Destroyed 139 | . . 1 . 1 2 1 . 3 . 1 74 56 Melee . | . . . . . . . . . . . . . Projectile 9 | . . 1 . 1 2 1 . 1 . 1 2 . AOE 128 | . . . . . . . . . . . 72 56 Terrain Rammed . | . . . . . . . . . . . . . Walls Destroyed . | . . . . . . . . . . . . . Machines Disabled . | . . . . . . . . . . . . . Actions | -11 -10 -10 -9 -7 -7 -7 -7 -7 -7 -6 -6 -6 --------- Run | Yrd Mat Sub Rec Fac Was Fac Low Low Zio Pro Fac Ext Total 10817 | 4 380 1399 1583 1217 372 1071 689 393 232 1001 2115 361 Wait 1973 | . 9 12 578 159 . 35 194 29 . 361 564 32 Move 8028 | . 331 1245 895 1006 358 978 454 333 218 620 1350 240 Hop . | . . . . . . . . . . . . . Pick Up 87 | . 6 21 7 16 4 6 7 3 2 2 11 2 Fast Attach 25 | . 3 1 1 4 . 3 . 1 . 1 10 1 Attach 32 | . . 11 . 1 . . 2 1 1 . 11 5 Detach 11 | . . . . 1 . 1 . . . 1 5 3 Swap 14 | . 3 5 . . 1 . 1 . . 1 2 1 Drop 79 | 4 3 8 14 9 1 7 6 7 . 2 15 3 Fire 467 | . 24 95 22 21 7 40 24 19 10 12 136 57 Melee 12 | . . . . . . . . . 1 1 10 . Ram 1 | . . 1 . . . . . . . . . . Kick 2 | . 1 . . . . . . . . . 1 . Crush 3 | . . . . . . 1 1 . . . . 1 Escape Stasis . | . . . . . . . . . . . . . Rewire 67 | . . . 66 . 1 . . . . . . . Trap . | . . . . . . . . . . . . . Miscellaneous 16 | . . . . . . . . . . . . 16 Route ------- -11/Scrapyard -10/Materials (discovered 3 exits: [*Mat] / [*Min] / *Sub) -10/Subcaves (discovered 2 exits: [*Mat] / *Rec) -9/Recycling -7/Factory -7/Waste -7/Factory (discovered 2 exits: *Fac / *Low) -7/Lower Caves -7/Lower Caves -7/Zion -6/Proximity Caves -6/Factory (discovered 4 exits: *Fac x3 / *Ext) -6/Extension History --------- Turn | Location | Event 4 | -11/Scrapyard | Discovered new exit (range 0) 4 | -11/Scrapyard | Entered Materials 162 | -10/Materials | Discovered new exit (range 9) 301 | -10/Materials | Build established: Mutant 504 | -10/Materials | Derelicts attacked the area 504 | -10/Materials | Discovered new exit (range 6) 749 | -10/Materials | Discovered new exit (range 5) 820 | -10/Materials | Entered Subcaves 905 | -10/Subcaves | Disturbed a concealed Subdweller 1054 | -10/Subcaves | Disturbed a concealed Subdweller 1525 | -10/Subcaves | A swath of the cavern ceiling suddenly collapsed 1724 | -10/Subcaves | Visited Clippyterm 1732 | -10/Subcaves | Learned Factory emergency access door positions 1732 | -10/Subcaves | Learned Factory garrison access intel 2105 | -10/Subcaves | A swath of the cavern ceiling suddenly collapsed 2136 | -10/Subcaves | Discovered new exit (range 10) 3023 | -10/Subcaves | Shifting Twisted Machinery released Sub. Optics 3023 | -10/Subcaves | Shifting Twisted Machinery released Barrage Gun 3347 | -10/Subcaves | Shifting Twisted Machinery released Sub. Optics 3352 | -10/Subcaves | Shifting Twisted Machinery released Battle Cannon 3845 | -10/Subcaves | Core integrity fell below 50% 3937 | -10/Subcaves | Discovered new exit (range 10) 3983 | -10/Subcaves | Entered Recycling 3984 | -9/Recycling | Met a Zionite searching for Scraptown 4452 | -9/Recycling | Discovered new exit (range 15) 4611 | -9/Recycling | Build established: Commander-Mutant 5362 | -9/Recycling | Identified exit to Scraptown 5509 | -9/Recycling | Learned location of Zion (-7) 5538 | -9/Recycling | Learned Materials stockpile data 5557 | -9/Recycling | Learned 2 Storage zone layouts 5585 | -9/Recycling | Learned location of Storage (-9) 5625 | -9/Recycling | Learned location of 2 exits from Materials 5631 | -9/Recycling | Scanned before Scraplab entrance 5667 | -9/Recycling | Entered Scraplab 5697 | -9/Recycling | Angered Scraplab inhabitants 5744 | -9/Recycling | Lost 4 allies 5746 | -9/Recycling | Found Prototype Device 5826 | -9/Recycling | Identified Scrap Engine 6276 | -9/Recycling | Build established: Construct 6643 | -9/Recycling | Entered Factory 6643 | -7/Factory | Accompanied by 1 ally 6643 | -7/Factory | Evolved 6 slots: Power x1, Propulsion x1, Utility x3, Weapon x1 6645 | -7/Factory | Loaded intel: 4 garrison access locations 7549 | -7/Factory | P-60 Hacker assimilated allied Engineer 2b 8555 | -7/Factory | Discovered new exit (range 15) 8686 | -7/Factory | Sucked down chute 8686 | -7/Factory | Entered Waste 8686 | -7/Waste | The area was eerily silent 9519 | -7/Waste | Discovered new exit (range 13) 9566 | -7/Waste | A Compactor rumbled back to life 9567 | -7/Waste | Spotted C-40 Crusher 9576 | -7/Waste | Entered Factory 9864 | -7/Factory | Discovered new exit (range 11) 10443 | -7/Factory | Identified exit to Factory 11654 | -7/Factory | Discovered new exit (range 7) 11679 | -7/Factory | Identified exit to Lower Caves 11688 | -7/Factory | Entered Lower Caves 11764 | -7/Lower Caves | Encountered a Warlord checkpoint 11844 | -7/Lower Caves | Ambushed by wild Derelicts 12079 | -7/Lower Caves | Found Prototype Device 12190 | -7/Lower Caves | Learned Factory security intel 12665 | -7/Lower Caves | Discovered new exit (range 4) 12670 | -7/Lower Caves | Entered another Lower Caves area 13272 | -7/Lower Caves | Learned 8 Factory zone layouts 13347 | -7/Lower Caves | Discovered new exit (range 6) 13362 | -7/Lower Caves | Entered Zion 13599 | -7/Zion | Discovered new exit (range 14) 13704 | -7/Zion | System corruption cleaned by Quarantine Array 13711 | -7/Zion | Attacked by Zionites 13711 | -7/Zion | Spotted JS-2OK(B) 13711 | -7/Zion | Spotted YT-T8E(B) 13749 | -7/Zion | Core integrity fell below 50% 13785 | -7/Zion | Lost 6 parts (1p2n1u2w) 13836 | -7/Zion | Entered Proximity Caves 13860 | -6/Proximity Caves | Found Alien Artifact 14046 | -6/Proximity Caves | Build established: Mutant 14593 | -6/Proximity Caves | Learned 4 Factory zone layouts 14798 | -6/Proximity Caves | Discovered exit to Factory (range 20) 15503 | -6/Proximity Caves | Found DCF Scrap (10 items) 15861 | -6/Proximity Caves | Entered Factory 15861 | -6/Factory | Evolved 2 slots: Utility x2 15862 | -6/Factory | Identified exit to Extension 15863 | -6/Factory | Identified exit to Factory 16151 | -6/Factory | Build established: Hacker-Mutant 16227 | -6/Factory | Destroyed 9 combat bots 16233 | -6/Factory | Lost 5 parts (1p1n2u1w) 16855 | -6/Factory | Discovered exit to Factory (range 12) 17086 | -6/Factory | Garrison activated, responded to threat 17635 | -6/Factory | System corruption reached 10% 18447 | -6/Factory | Identified Heart of Steel 19993 | -6/Factory | Core integrity fell below 50% 20660 | -6/Factory | Entered Extension 20755 | -6/Extension | Lost 4 parts (1p1n2u) 20864 | -6/Extension | Rescued A7 20913 | -6/Extension | Rescued a captive Derelict 20914 | -6/Extension | Rescued a captive Derelict 21001 | -6/Extension | Build established: Mutant 21038 | -6/Extension | Rescued a captive Derelict 21039 | -6/Extension | Rescued a captive Derelict 21236 | -6/Extension | Rescued a captive Derelict 21346 | -6/Extension | Energy Cycler disabled 21347 | -6/Extension | Rescued a captive Derelict 21410 | -6/Extension | Spotted B-75 Beast 21410 | -6/Extension | Spotted B-75 Beast 21425 | -6/Extension | Allies destroyed B-75 Beast 21426 | -6/Extension | Destroyed A7 21457 | -6/Extension | Lost 5 allies 21460 | -6/Extension | Disrupted transfer network 21463 | -6/Extension | Destroyed 7 combat bots 21481 | -6/Extension | Destroyed B-75 Beast 21500 | -6/Extension | Lost 3 parts (1n1u1w) 21549 | -6/Extension | Core integrity fell below 20% 21555 | -6/Extension | Destroyed by G-50 Soldier with Heavy Laser Last Messages --------------- 21548_ Arm. Scrap Engine damaged due to network destabilization (-7). 21548_ Slug penetrates Wall. 21548_ Penetrated by Slug. 21548_ Fission-Deuterium Core destroyed. 21548_ Arm. Scrap Engine damaged due to network destabilization (-6). 21549_ ALERT: Construction progress impeded, dispatching reinforcements to local area. 21550_ Lrn. Missile Launcher destroyed. 21551_ Arm. Scrap Engine consumes Corrupted Imp. Medium Treads. 21551_ Penetrated by Slug. 21551_ Imp. Core Shielding destroyed. 21551_ Penetrated by Slug. 21553_ Arm. Scrap Engine destroyed. 21553_ Scrap Engine core remains intact and functional. 21554_ Critical hit (Burn: +37). 21554_ Penetrated by Slug. 21555_ System corrupted: Energy discharge (-32). Map ----- +----------------------------------------------------+ | ?# + ###??????????????????????? | | ?# " #????????????????????????? | | ## "##+####????????????????????????? | | #????????????????????????? | | ######## #????????????????????????? | | ???????# #????????????????????????? | | ???????# T #????????????????????????? | | ???????# # ## #T##### #????????????????????????? | | ???????####??#T ###???# #????????????????????????? | | ?????????????## #?????# #????????????????????????? | | ??????????????# #?????# #????????????????????????? | | ??????????????###?????# #????????????????????????? | | ??????????????????????# #????????????????????????? | | ??????????????????????# #????????????????????????? | | ??????????????????????# #????????????????????????? | | ??????????????????????# #????????????????????????? | | ??????????????????????# #????????????????????????? | | ??????????????????????# ##???????????????????????? | | ???????????????????##?# ##???????????????????????? | | ???????????????????# # ##???????????????????????? | | ???????????????????# # ###??????????????????????? | | ????????????????????# # # #?#????????????????????? | | ????????????????????###[ ]#;#??# #u#####?????????? | | ???????????????????##[# ###!# R #?????????? | | ??????????????????## %][%=] #?????????? | | ??????????????????# [!@=] Y #?????????? | | ??????????????????# *%!l==[= g #?????????? | | ?????????????????# # !=%!==% g % #?????????? | | ????????????????#"###% =/*=%=[ % #?????????? | | ??????????????? % g ?????????? | | ????????????? % ??????????? | | ???????????? % g ??????????? | | ??????????? h h g ??????????? | | ???????????? A % % ???????????? | | ?????????????#####;## #???????????? | | ?????????????????##?# ????????????? | | ????????????????????# ????????????? | | ????????????????????# ??????????????? | | ????????????????????# ????????????????? | | ????????????????????######T# ???????????????????? | | ?????????????????????????????????????????????????? | | ?????????????????????????????????????????????????? | | | | | | | | | | | | | | | | | +----------------------------------------------------+ Best States ------------- Heat Dissipation 64 Coolant Potential 65 Energy Generation 30 Energy Capacity 497 Matter Stores 300 Matter Capacity 300 Sight Range 16 Terrain Scan Density 10 Armor Coverage 225 Resistance: KI 20 Resistance: TH 20 Resistance: EX 20 Resistance: EM 45 Resistance: I 20 Resistance: S 20 Resistance: P 20 Core Shielding 30 Evasion (%) 55 Targeting Accuracy 6 Recoil Reduction 3 Energy Filtering 30 Offensive Hacking 20 Defensive Hacking 10 Item Schematics ----------------- Katana | -9/Recycling | Hacked Riot Gun | -7/Zion | Free Battle Cannon | -7/Zion | Free Flamer | -7/Zion | Free Hvy. Riot Gun | -7/Zion | Free Barrage Gun | -7/Zion | Free Enh. Flamer | -7/Zion | Free Ripper | -7/Zion | Free Hvy. Battle Rifle | -7/Zion | Free Impulse Thruster | -6/Extension | Hacked Robot Schematics ------------------ None Fabricated ------------ Nothing Alien Tech Used ----------------- None Achievements -------------- None Challenges ------------ None Game ------ Seed StorageCobblerBarrier Manual? 0 Play Time 01:37:17 Cumulative 362.4 hours Start 2024.09.07 @ 02:38:49 End 2024.09.07 @ 17:10:09 Sessions 3 Manual Loads 0 Difficulty Adventurer Special Mode None Game No. 275 Rogue 63 Adventurer 186 Explorer 26 Win Type - Total 1 Types 1/0/0/0/0/0/0/0/0 Lore% 79 Gallery% 76 Achievement% 68 Wizard Run 0 Options --------- Layout 2 ASCII 0 Keyboard 0 Movement Mouse Keybinds 0 Fullscreen 0 Font 18/CogNarrow Map View 64x51 Zoom Use 0% Tactical HUD 1 Map Filters NONE Filters BRIGHTNESS(115)|SATURATION(100)|LOW_CONTRAST(0,16,30) Steam 1 RUN: 943f5286-15e2-45a7-8998-e7eabe7d66e6